fUSD/lending_fUSD_20241225
["ID","MTS","AMOUNT","RATE_DAILY","PERIOD"]
[346647181,1735150250057,-1500.0,0.00012667,2]
[346647183,1735150250068,-16632.01590711,0.00012676,2]
[346647185,1735150250078,-4721.62222051,0.00012676,2]
[346647187,1735150250089,-500.0,0.00012731,2]
[346647190,1735150250099,-1000.0,0.00012739,2]
[346647192,1735150250109,-151.0,0.00012768,2]
[346647194,1735150250119,-16632.01590711,0.00012788,2]
[346647196,1735150250128,-4721.62222051,0.00012788,2]
[346647198,1735150250138,-157.99198393,0.000128,2]
[346647200,1735150250148,-500.0,0.00012813,2]
[346647202,1735150250157,-500.0,0.00012813,2]
[346647204,1735150250167,-500.0,0.00012813,2]
[346647206,1735150250178,-541.2,0.00012813,2]
[346647208,1735150250191,-500.0,0.00012813,2]
[346647210,1735150250202,-500.0,0.00012813,2]
[346647212,1735150250213,-2948.04,0.00012813,2]
[346647214,1735150250223,-1136.65,0.00012813,2]
[346647216,1735150250234,-996.96,0.00012813,2]
[346647218,1735150250244,-500.0,0.00012813,2]
[346647220,1735150250254,-1132.09,0.00012813,2]
[346647222,1735150250264,-500.0,0.00012813,2]
[346647224,1735150250275,-500.0,0.00012813,2]
[346647226,1735150250285,-1843.89,0.00012813,2]
[346647228,1735150250294,-500.0,0.00012813,2]
[346647230,1735150250304,-160.16238,0.00012813,2]
[346647232,1735150250314,-500.0,0.00012813,2]
[346647234,1735150250324,-500.0,0.00012813,2]
[346647236,1735150250333,-160.16238,0.00012813,2]
[346647238,1735150250344,-595.26,0.00012813,2]
[346647241,1735150250353,-1770.44,0.00012813,2]
[346647243,1735150250364,-907.94,0.00012813,2]
[346647245,1735150250374,-616.5,0.00012813,2]
[346647247,1735150250384,-500.0,0.00012813,2]
[346647249,1735150250395,-500.0,0.00012813,2]
[346647251,1735150250404,-723.19,0.00012813,2]
[346647253,1735150250414,-318.566083,0.00012813,2]
[346647255,1735150250424,-520.77,0.00012813,2]
[346647257,1735150250433,-318.566083,0.00012813,2]
[346647259,1735150250443,-500.0,0.00012813,2]
[346647261,1735150250453,-500.0,0.00012813,2]
[346647263,1735150250463,-728.63,0.00012813,2]
[346647265,1735150250473,-500.0,0.00012813,2]
[346647267,1735150250483,-1147.24,0.00012813,2]
[346647269,1735150250492,-500.0,0.00012813,2]
[346647271,1735150250503,-500.0,0.00012813,2]
[346647273,1735150250513,-500.0,0.00012813,2]
[346647275,1735150250523,-500.0,0.00012813,2]
[346647277,1735150250534,-3619.83,0.00012813,2]
[346647279,1735150250543,-500.0,0.00012813,2]
[346647281,1735150250553,-500.0,0.00012813,2]
[346647283,1735150250562,-500.0,0.00012813,2]
[346647285,1735150250572,-484.60442457,0.00012813,2]
[346647287,1735150250584,-1384.94,0.00012813,2]
[346647289,1735150250594,-500.0,0.00012813,2]
[346647291,1735150250603,-212.36,0.00012813,2]
[346647293,1735150250614,-156.70795901,0.00012813,2]
[346647295,1735150250624,-493.44,0.00012813,2]
[346647297,1735150250634,-1405.89,0.00012813,2]
[346647299,1735150250643,-241.78,0.00012813,2]
[346647301,1735150250653,-500.0,0.00012813,2]
[346647303,1735150250663,-500.0,0.00012813,2]
[346647305,1735150250673,-500.0,0.00012813,2]
[346647307,1735150250683,-468.40380228,0.00012813,2]
[346647309,1735150250693,-500.0,0.00012813,2]
[346647325,1735150250703,-500.0,0.00012813,2]
[346647326,1735150250914,-1313.68,0.00012813,2]
[346647327,1735150250923,-500.0,0.00012813,2]
[346647329,1735150250932,-500.0,0.00012813,2]
[346647331,1735150250943,-500.0,0.00012813,2]
[346647333,1735150250953,-971.04,0.00012813,2]
[346647335,1735150250963,-233.82,0.00012814,2]
[346647337,1735150250973,-470.08,0.00012814,2]
[346647339,1735150250982,-500.0,0.00012814,2]
[346647341,1735150250992,-500.0,0.00012814,2]
[346647343,1735150251001,-500.0,0.00012814,2]
[346647345,1735150251011,-500.0,0.00012814,2]
[346647347,1735150251020,-278.09,0.00012814,2]
[346647349,1735150251029,-500.0,0.00012814,2]
[346647351,1735150251039,-500.0,0.00012814,2]
[346647353,1735150251048,-500.0,0.00012814,2]
[346647355,1735150251057,-331.02946334,0.00012814,2]
[346647357,1735150251067,-500.0,0.00012814,2]
[346647359,1735150251076,-500.0,0.00012814,2]
[346647361,1735150251086,-500.0,0.00012814,2]
[346647363,1735150251095,-500.0,0.00012814,2]
[346647365,1735150251105,-500.0,0.00012814,2]
[346647367,1735150251114,-392.66,0.00012814,2]
[346647369,1735150251124,-500.0,0.00012814,2]
[346647371,1735150251136,-500.0,0.00012814,2]
[346647373,1735150251146,-220.18,0.00012814,2]
[346647375,1735150251155,-500.0,0.00012814,2]
[346647377,1735150251164,-500.0,0.00012814,2]
[346647378,1735150251173,-217.051571,0.00012814,2]
[346647380,1735150251183,-217.051571,0.00012814,2]
[346647382,1735150251196,-500.0,0.00012814,2]
[346647385,1735150251205,-351.4,0.00012814,2]
[346647387,1735150251216,-395.3,0.00012814,2]
[346647389,1735150251226,-500.0,0.00012814,2]
[346647391,1735150251236,-481.38,0.00012814,2]
[346647393,1735150251246,-151.0,0.00012814,2]
[346647395,1735150251255,-500.0,0.00012814,2]
[346647397,1735150251265,-500.0,0.00012814,2]
[346647399,1735150251275,-500.0,0.00012814,2]
[346647401,1735150251284,-1153.84,0.00012814,2]
[346647403,1735150251295,-500.0,0.00012814,2]
[346647405,1735150251304,-500.0,0.00012814,2]
[346647407,1735150251313,-887.51,0.00012814,2]
[346647409,1735150251322,-500.0,0.00012814,2]
[346647411,1735150251332,-213.67,0.00012814,2]
[346647413,1735150251341,-500.0,0.00012814,2]
[346647415,1735150251351,-671.85,0.00012814,2]
[346647417,1735150251361,-500.0,0.00012814,2]
[346647419,1735150251370,-500.0,0.00012814,2]
[346647421,1735150251379,-500.0,0.00012814,2]
[346647423,1735150251388,-500.0,0.00012814,2]
[346647425,1735150251397,-500.0,0.00012814,2]
[346647427,1735150251406,-500.0,0.00012814,2]
[346647429,1735150251416,-500.0,0.00012814,2]
[346647431,1735150251426,-500.0,0.00012814,2]
[346647433,1735150251435,-500.0,0.00012814,2]
[346647435,1735150251444,-569.98,0.00012814,2]
[346647437,1735150251454,-1083.75,0.00012814,2]
[346647439,1735150251463,-4187.28,0.00012814,2]
[346647441,1735150251473,-500.0,0.00012814,2]
[346647443,1735150251483,-151.0,0.00012814,2]
[346647445,1735150251492,-500.0,0.00012814,2]
[346647447,1735150251501,-1743.121658,0.00012814,2]
[346647449,1735150251511,-1743.121658,0.00012814,2]
[346647451,1735150251520,-500.0,0.00012814,2]
[346647453,1735150251529,-500.0,0.00012814,2]
[346647455,1735150251539,-2615.4,0.00012814,2]
[346647457,1735150251548,-637.51296487,0.00012814,2]
[346647459,1735150251558,-500.0,0.00012814,2]
[346647461,1735150251567,-500.0,0.00012814,2]
[346647463,1735150251577,-500.0,0.00012814,2]
[346647465,1735150251586,-500.0,0.00012814,2]
[346647467,1735150251595,-588.97,0.00012814,2]
[346647469,1735150251604,-151.0,0.00012816,2]
[346647471,1735150251614,-348.395164,0.00012816,2]
[346647473,1735150251623,-348.395164,0.00012816,2]
[346647475,1735150251632,-500.0,0.00012816,2]
[346647477,1735150251642,-841.99,0.00012816,2]
[346647479,1735150251651,-500.0,0.00012816,2]
[346647481,1735150251661,-151.0,0.00012817,2]
[346647483,1735150251670,-226.85653755,0.0001283,2]
[346647485,1735150251680,-200.0,0.00012846,2]
[346647487,1735150251689,-200.0,0.00012846,2]
[346647489,1735150251698,-200.0,0.00012846,2]
[346647491,1735150251707,-258.76,0.00012846,2]
[346647493,1735150251717,-201.0,0.00012846,2]
[346647495,1735150251726,-157.99198392,0.0001285,2]
[346647497,1735150251735,-1500.0,0.00012865,2]
[346647499,1735150251745,-500.0,0.00012868,2]
[346647501,1735150251753,-1000.0,0.00012876,2]
[346647503,1735150251763,-853.11430851,0.00012876,2]
[346647505,1735150251772,-733315.11090674,0.000129,10]
[346647507,1735150251781,-20000.0,0.000129,3]
[346647509,1735150251790,-1333.46836607,0.000129,2]
[346647511,1735150251800,-152.554432,0.000129,2]
[346647513,1735150251809,-151.0,0.000129,2]
[346647514,1735150251819,-151.0,0.000129,2]
[346647516,1735150251828,-202.354048,0.000129,2]
[346647519,1735150251838,-151.0,0.000129,2]
[346647521,1735150251848,-151.0,0.000129,2]
[346647523,1735150251857,-151.0,0.000129,2]
[346647525,1735150251867,-151.0,0.000129,2]
[346647527,1735150251876,-217.051571,0.000129,2]
[346647529,1735150251886,-217.051565,0.000129,2]
[346647531,1735150251895,-151.0,0.000129,2]
[346647533,1735150251904,-348.395164,0.000129,2]
[346647534,1735150251913,-348.395164,0.000129,2]
[346647536,1735150251923,-265.80997054,0.000129,2]
[346647538,1735150251933,-265.80997054,0.000129,2]
[346647540,1735150251942,-265.80997054,0.000129,2]
[346647543,1735150251952,-265.80997054,0.000129,2]
[346647545,1735150251962,-265.80997054,0.000129,2]
[346647547,1735150251973,-265.80997054,0.000129,2]
[346647549,1735150251982,-265.80997054,0.000129,2]
[346647550,1735150251991,-265.80997054,0.000129,2]
[346647552,1735150252001,-265.80997054,0.000129,2]
[346647554,1735150252011,-160.16238,0.000129,2]
[346647557,1735150252021,-160.162385,0.000129,2]
[346647559,1735150252030,-4721.62222051,0.000129,2]
[346647561,1735150252039,-318.566083,0.000129,2]
[346647562,1735150252049,-318.566075,0.000129,2]
[346647564,1735150252058,-226.179348,0.000129,2]
[346647566,1735150252068,-1743.121658,0.000129,2]
[346647568,1735150252077,-1743.121654,0.000129,2]
[346647570,1735150252086,-16632.01590711,0.000129,2]
[346647572,1735150252096,-157.99198392,0.000129,2]
[346647574,1735150252105,-500.0,0.00012912,2]
[346647577,1735150252115,-544.99372737,0.00012912,2]
[346647579,1735150252125,-500.0,0.00012912,2]
[346647580,1735150252134,-500.0,0.00012912,2]
[346647582,1735150252143,-500.0,0.00012912,2]
[346647585,1735150252153,-500.0,0.00012912,2]
[346647586,1735150252162,-500.0,0.00012912,2]
[346647589,1735150252171,-479.46,0.00012912,2]
[346647591,1735150252181,-151.0,0.00012913,2]
[346647593,1735150252191,-1160.79428949,0.00012915,2]
[346647594,1735150252202,-1160.79428949,0.00012917,2]
[346647597,1735150252211,-913.13455094,0.00012918,2]
[346647599,1735150252221,-913.13455094,0.00012921,2]
[346647600,1735150252231,-1160.79428949,0.00012925,2]
[346647603,1735150252242,-913.13455094,0.00012929,2]
[346647605,1735150252251,-17452.73034611,0.0001293,2]
[346647606,1735150252260,-180000.0,0.0001293,2]
[346647608,1735150252270,-151.0,0.0001293,2]
[346647610,1735150252279,-238.47416,0.0001293,2]
[346647612,1735150252288,-151.0,0.0001293,2]
[346647614,1735150252298,-169.06228288,0.0001293,2]
[346647616,1735150252307,-348.395164,0.0001293,2]
[346647618,1735150252317,-348.395167,0.0001293,2]
[346647620,1735150252326,-422.06099667,0.0001293,2]
[346647622,1735150252336,-8820.36692576,0.0001293,2]
[346647624,1735150252345,-37311.37704431,0.0001293,2]
[346647626,1735150252354,-945.30253629,0.00012931,2]
[346647629,1735150252364,-20045.02253166,0.00012931,2]
[346647631,1735150252374,-8820.36692576,0.00012932,2]
[346647632,1735150252383,-37311.37704431,0.00012932,2]
[346647634,1735150252393,-8820.36692576,0.00012933,2]
[346647637,1735150252402,-37311.37704431,0.00012933,2]
[346647639,1735150252412,-8820.36692576,0.00012934,2]
[346647640,1735150252421,-8820.36692576,0.00012935,2]
[346647642,1735150252430,-66062.25021319,0.00012935,2]
[346647644,1735150252439,-1160.79428949,0.00012935,2]
[346647646,1735150252449,-945.30253629,0.00012936,2]
[346647648,1735150252458,-945.30253629,0.00012936,2]
[346647650,1735150252467,-20045.02253166,0.00012937,2]
[346647652,1735150252476,-1160.79428949,0.00012937,2]
[346647654,1735150252485,-913.13455094,0.00012938,2]
[346647656,1735150252494,-422.06099667,0.00012939,2]
[346647658,1735150252504,-20045.02253166,0.00012939,2]
[346647660,1735150252513,-913.13455094,0.00012939,2]
[346647662,1735150252523,-913.13455094,0.00012939,2]
[346647664,1735150252532,-22733.58511451,0.0001294,2]
[346647683,1735150252781,-3033.49090866,0.0001294,2]
[346647685,1735150252792,-464.81213,0.0001294,2]
[346647688,1735150252804,-975.0734021,0.0001294,2]
[346647692,1735150252831,-9463.52581424,0.0001294,2]
[346647694,1735150252842,-640.8896748,0.0001294,2]
[346647696,1735150252851,-380.73462087,0.00012943,2]
[346647705,1735150253142,-802.20385,0.00012943,2]
[346647707,1735150253155,-8688.68653269,0.00012943,2]
[346647719,1735150253429,-4935.05920496,0.00012943,2]
[346647721,1735150253440,-2213.41157521,0.00012943,2]
[346647724,1735150253454,-20291.28126058,0.00012943,2]
[346647726,1735150253466,-20045.02253166,0.00012946,2]
[346647727,1735150253479,-1160.79428949,0.00012947,2]
[346647728,1735150253488,-945.30253629,0.00012947,2]
[346647729,1735150253499,-422.06099667,0.00012948,2]
[346647730,1735150253508,-20045.02253166,0.00012948,2]
[346647731,1735150253518,-20045.02253166,0.00012949,2]
[346647732,1735150253528,-200.0,0.00012949,2]
[346647733,1735150253539,-478357.24479445,0.0001295,2]
[346647758,1735151062510,162.54,0.00016658,30]
[346647759,1735151260568,4000.0,0.00024999,60]
[346647763,1735151331339,4000.0,0.00024999,60]
[346647764,1735151352000,300.0,0.00024999,60]
[346647765,1735151362130,-575.93,9.666e-05,2]
[346647774,1735151400292,4000.0,0.00025002,60]
[346647775,1735151419145,4000.0,0.00025002,60]
[346647785,1735151432311,-167.58,0.00010137,2]
[346647787,1735151432321,-203.67,0.0001015,2]
[346647788,1735151432331,-164.19971257,0.00010158,2]
[346647789,1735151432382,-133.44221092,0.00010158,2]
[346647790,1735151432391,-151.0,0.00010258,2]
[346647791,1735151432401,-549.66313733,0.00011326,2]
[346647792,1735151432439,-357.355385,0.00011326,2]
[346647793,1735151432503,-92.98147767,0.00011326,2]
[346647794,1735151432516,-728.24504622,0.00011617,2]
[346647795,1735151432813,-19875.51495378,0.00011617,2]
[346647796,1735151432823,-250.0,0.00011617,2]
[346647797,1735151432831,-202.84,0.00011672,2]
[346647798,1735151432841,-203.74,0.00011672,2]
[346647799,1735151432850,-200.6,0.00011672,2]
[346647801,1735151432859,-200.82,0.00011672,2]
[346647802,1735151432868,-202.42,0.00011672,2]
[346647803,1735151432877,-200.73,0.00011672,2]
[346647804,1735151432886,-305.05,0.00011672,2]
[346647805,1735151432895,-1000.0,0.00011792,2]
[346647806,1735151432904,-202.33,0.00011792,2]
[346647807,1735151432913,-203.09,0.00011792,2]
[346647809,1735151432922,-202.4,0.00011792,2]
[346647811,1735151432931,-201.54,0.00011792,2]
[346647813,1735151432941,-200.2,0.00011792,2]
[346647815,1735151432950,-201.55,0.00011792,2]
[346647817,1735151432959,-200.39,0.00011792,2]
[346647819,1735151432967,-202.88,0.00011792,2]
[346647821,1735151432976,-202.1,0.00011792,2]
[346647822,1735151432987,-4694.42612262,0.00011865,2]
[346647825,1735151432998,-1170.66178625,0.00011865,2]
[346647827,1735151433009,-1678.06042861,0.00011865,2]
[346647829,1735151433020,-423.86186055,0.00011865,2]
[346647831,1735151433031,-2623.09446388,0.00011865,2]
[346647833,1735151433043,-20005.54670462,0.00011865,2]
[346647835,1735151433052,-727.38217747,0.00011891,2]
[346647837,1735151433064,-1096.33112253,0.00011891,2]
[346647839,1735151433074,-200.78,0.00011892,2]
[346647841,1735151433084,-203.29,0.00011892,2]
[346647843,1735151433094,-201.93,0.00011892,2]
[346647845,1735151433103,-200.85,0.00011892,2]
[346647847,1735151433113,-203.93,0.00011892,2]
[346647849,1735151433124,-203.45,0.00011892,2]
[346647851,1735151433134,-17935.84887742,0.00011892,2]
[346647856,1735151438192,-200.44,0.00010144,2]
[346647857,1735151438202,-266.61,0.00011892,2]
[346647858,1735151438253,-635.99468703,0.00011892,2]
[346647859,1735151438322,-463.4202856,0.00011892,2]
[346647860,1735151438390,-577.71802019,0.00011892,2]
[346647862,1735151438573,-387.05196557,0.00011892,2]
[346647907,1735151440400,-48564.50346419,0.00011892,2]
[346647908,1735151440410,-869.22,0.00011922,2]
[346647909,1735151440419,-1536.04,0.00011922,2]
[346647910,1735151440429,-575.93,0.00011929,2]
[346647911,1735151440439,-600.0,0.00011972,2]
[346647912,1735151440448,-1400.0,0.00011972,2]
[346647913,1735151440458,-500.0,0.00011989,2]
[346647914,1735151440468,-822.42,0.00011989,2]
[346647915,1735151440479,-500.0,0.00011989,2]
[346647916,1735151440491,-500.0,0.00011989,2]
[346647917,1735151440500,-500.0,0.00011989,2]
[346647918,1735151440512,-3587.6,0.00011989,2]
[346647919,1735151440525,-500.0,0.00011989,2]
[346647920,1735151440535,-908.4,0.00011989,2]
[346647921,1735151440544,-1026.75,0.00011989,2]
[346647922,1735151440555,-500.0,0.00011989,2]
[346647923,1735151440565,-1429.07,0.00011989,2]
[346647924,1735151440576,-1399.43,0.00011989,2]
[346647925,1735151440586,-718.09,0.00011989,2]
[346647926,1735151440595,-563.59,0.00011989,2]
[346647927,1735151440604,-848.34,0.00011989,2]
[346647928,1735151440614,-1308.89,0.00011989,2]
[346647929,1735151440625,-1609.86,0.00011989,2]
[346647930,1735151440636,-500.0,0.00011989,2]
[346647931,1735151440646,-500.0,0.00011989,2]
[346647932,1735151440655,-519.67,0.00011989,2]
[346647933,1735151440665,-500.0,0.00011989,2]
[346647934,1735151440676,-5088.45,0.00011989,2]
[346647935,1735151440686,-500.0,0.00011989,2]
[346647936,1735151440695,-500.0,0.00011989,2]
[346647937,1735151440704,-500.0,0.00011989,2]
[346647938,1735151440714,-500.0,0.00011989,2]
[346647939,1735151440723,-500.0,0.00011989,2]
[346647940,1735151440732,-500.0,0.00011989,2]
[346647941,1735151440741,-500.0,0.00011989,2]
[346647942,1735151440750,-500.0,0.00011989,2]
[346647943,1735151440759,-892.4,0.00011989,2]
[346647944,1735151440768,-500.0,0.00011989,2]
[346647945,1735151440778,-500.0,0.00011989,2]
[346647946,1735151440787,-500.0,0.00011989,2]
[346647947,1735151440796,-500.0,0.00011989,2]
[346647948,1735151440805,-500.0,0.00011989,2]
[346647949,1735151440815,-500.0,0.00011989,2]
[346647950,1735151440824,-500.0,0.00011989,2]
[346647952,1735151440833,-500.0,0.00011989,2]
[346647954,1735151440842,-500.0,0.00011989,2]
[346647955,1735151440851,-770.62,0.00011989,2]
[346647956,1735151440862,-500.0,0.00011989,2]
[346647957,1735151440871,-500.0,0.00011989,2]
[346647958,1735151440881,-500.0,0.0001199,2]
[346647960,1735151440891,-500.0,0.0001199,2]
[346647985,1735151440901,-500.0,0.0001199,2]
[346647988,1735151441133,-500.0,0.0001199,2]
[346647990,1735151441142,-500.0,0.0001199,2]
[346647992,1735151441152,-500.0,0.0001199,2]
[346647994,1735151441162,-500.0,0.0001199,2]
[346647996,1735151441171,-500.0,0.0001199,2]
[346647998,1735151441180,-500.0,0.0001199,2]
[346648000,1735151441189,-500.0,0.0001199,2]
[346648001,1735151441198,-500.0,0.0001199,2]
[346648002,1735151441207,-500.0,0.0001199,2]
[346648004,1735151441216,-500.0,0.0001199,2]
[346648005,1735151441225,-500.0,0.0001199,2]
[346648007,1735151441235,-500.0,0.0001199,2]
[346648009,1735151441244,-500.0,0.0001199,2]
[346648011,1735151441253,-500.0,0.0001199,2]
[346648013,1735151441262,-500.0,0.0001199,2]
[346648015,1735151441271,-500.0,0.0001199,2]
[346648017,1735151441280,-500.0,0.0001199,2]
[346648019,1735151441289,-500.0,0.0001199,2]
[346648021,1735151441298,-500.0,0.0001199,2]
[346648023,1735151441307,-500.0,0.0001199,2]
[346648025,1735151441316,-500.0,0.0001199,2]
[346648027,1735151441325,-500.0,0.0001199,2]
[346648029,1735151441334,-500.0,0.0001199,2]
[346648031,1735151441342,-500.0,0.0001199,2]
[346648033,1735151441352,-500.0,0.0001199,2]
[346648035,1735151441361,-500.0,0.0001199,2]
[346648037,1735151441370,-500.0,0.0001199,2]
[346648039,1735151441380,-500.0,0.0001199,2]
[346648041,1735151441389,-500.0,0.0001199,2]
[346648043,1735151441398,-500.0,0.0001199,2]
[346648045,1735151441409,-500.0,0.0001199,2]
[346648047,1735151441418,-500.0,0.0001199,2]
[346648049,1735151441427,-647.69382681,0.0001199,2]
[346648051,1735151441435,-500.0,0.0001199,2]
[346648053,1735151441444,-500.0,0.0001199,2]
[346648055,1735151441454,-500.0,0.0001199,2]
[346648057,1735151441463,-500.0,0.0001199,2]
[346648059,1735151441472,-500.0,0.0001199,2]
[346648061,1735151441481,-500.0,0.0001199,2]
[346648063,1735151441491,-155.940262,0.0001199,2]
[346648065,1735151441500,-261.691354,0.0001199,2]
[346648067,1735151441509,-500.0,0.0001199,2]
[346648069,1735151441524,-500.0,0.0001199,2]
[346648070,1735151441534,-154.072404,0.0001199,2]
[346648072,1735151441543,-500.0,0.0001199,2]
[346648074,1735151441552,-320.521166,0.0001199,2]
[346648077,1735151441562,-500.0,0.0001199,2]
[346648079,1735151441571,-500.0,0.0001199,2]
[346648081,1735151441580,-500.0,0.0001199,2]
[346648083,1735151441593,-500.0,0.0001199,2]
[346648085,1735151441603,-500.0,0.0001199,2]
[346648087,1735151441612,-500.0,0.0001199,2]
[346648089,1735151441621,-500.0,0.0001199,2]
[346648091,1735151441631,-500.0,0.0001199,2]
[346648093,1735151441640,-500.0,0.0001199,2]
[346648095,1735151441649,-500.0,0.0001199,2]
[346648097,1735151441660,-500.0,0.0001199,2]
[346648099,1735151441669,-500.0,0.0001199,2]
[346648101,1735151441679,-500.0,0.0001199,2]
[346648104,1735151441692,-500.0,0.0001199,2]
[346648106,1735151441701,-500.0,0.0001199,2]
[346648107,1735151441711,-500.0,0.0001199,2]
[346648109,1735151441720,-500.0,0.0001199,2]
[346648111,1735151441729,-500.0,0.0001199,2]
[346648113,1735151441738,-500.0,0.0001199,2]
[346648116,1735151441747,-500.0,0.0001199,2]
[346648117,1735151441757,-500.0,0.0001199,2]
[346648119,1735151441766,-500.0,0.0001199,2]
[346648121,1735151441774,-500.0,0.0001199,2]
[346648123,1735151441783,-500.0,0.0001199,2]
[346648125,1735151441792,-500.0,0.0001199,2]
[346648127,1735151441802,-500.0,0.0001199,2]
[346648129,1735151441811,-498.24599728,0.0001199,2]
[346648131,1735151441820,-500.0,0.0001199,2]
[346648133,1735151441829,-500.0,0.0001199,2]
[346648135,1735151441838,-500.0,0.0001199,2]
[346648137,1735151441847,-500.0,0.0001199,2]
[346648139,1735151441856,-500.0,0.0001199,2]
[346648141,1735151441865,-500.0,0.0001199,2]
[346648143,1735151441875,-500.0,0.0001199,2]
[346648145,1735151441884,-500.0,0.0001199,2]
[346648147,1735151441893,-500.0,0.0001199,2]
[346648149,1735151441903,-500.0,0.0001199,2]
[346648151,1735151441912,-500.0,0.0001199,2]
[346648153,1735151441921,-500.0,0.0001199,2]
[346648155,1735151441930,-500.0,0.0001199,2]
[346648157,1735151441939,-500.0,0.0001199,2]
[346648159,1735151441948,-500.0,0.0001199,2]
[346648161,1735151441957,-500.0,0.0001199,2]
[346648163,1735151441966,-500.0,0.0001199,2]
[346648165,1735151441975,-500.0,0.0001199,2]
[346648167,1735151441984,-500.0,0.0001199,2]
[346648169,1735151441993,-500.0,0.0001199,2]
[346648171,1735151442003,-500.0,0.0001199,2]
[346648173,1735151442012,-500.0,0.0001199,2]
[346648175,1735151442021,-500.0,0.0001199,2]
[346648177,1735151442032,-500.0,0.0001199,2]
[346648179,1735151442042,-500.0,0.0001199,2]
[346648181,1735151442051,-500.0,0.0001199,2]
[346648183,1735151442061,-500.0,0.0001199,2]
[346648185,1735151442071,-1771.94,0.0001199,2]
[346648187,1735151442080,-500.0,0.0001199,2]
[346648189,1735151442090,-500.0,0.0001199,2]
[346648191,1735151442099,-2285.93,0.0001199,2]
[346648193,1735151442110,-500.0,0.0001199,2]
[346648195,1735151442120,-500.0,0.0001199,2]
[346648197,1735151442130,-611.72,0.0001199,2]
[346648199,1735151442140,-500.0,0.0001199,2]
[346648201,1735151442149,-500.0,0.0001199,2]
[346648203,1735151442159,-500.0,0.0001199,2]
[346648205,1735151442169,-500.0,0.0001199,2]
[346648207,1735151442179,-500.0,0.0001199,2]
[346648209,1735151442188,-695.85,0.0001199,2]
[346648211,1735151442198,-608.7,0.0001199,2]
[346648213,1735151442208,-500.0,0.0001199,2]
[346648215,1735151442217,-1666.78,0.0001199,2]
[346648217,1735151442227,-500.0,0.0001199,2]
[346648219,1735151442236,-2673.38,0.0001199,2]
[346648221,1735151442246,-500.0,0.0001199,2]
[346648223,1735151442255,-500.0,0.0001199,2]
[346648225,1735151442265,-500.0,0.0001199,2]
[346648227,1735151442274,-500.0,0.0001199,2]
[346648229,1735151442283,-500.0,0.0001199,2]
[346648231,1735151442292,-1401.24,0.0001199,2]
[346648233,1735151442301,-500.0,0.0001199,2]
[346648235,1735151442311,-500.0,0.0001199,2]
[346648237,1735151442320,-500.0,0.0001199,2]
[346648239,1735151442329,-500.0,0.0001199,2]
[346648241,1735151442338,-500.0,0.0001199,2]
[346648243,1735151442347,-500.0,0.0001199,2]
[346648245,1735151442356,-500.0,0.0001199,2]
[346648246,1735151442365,-602.64,0.0001199,2]
[346648248,1735151442374,-500.0,0.0001199,2]
[346648250,1735151442383,-500.0,0.0001199,2]
[346648252,1735151442392,-500.0,0.0001199,2]
[346648254,1735151442401,-500.0,0.0001199,2]
[346648256,1735151442411,-500.0,0.0001199,2]